fUST/lending_fUST_20250912
["ID","MTS","AMOUNT","RATE_DAILY","PERIOD"]
[385049717,1757652651810,-480.0,0.00018856,2]
[385049718,1757652651819,-3185.53,0.00018856,2]
[385049719,1757652651829,-1548.88,0.00018856,2]
[385049720,1757652651838,-837.24,0.00018856,2]
[385049721,1757652651848,-151.0,0.00019,2]
[385049722,1757652651857,-666.25,0.00019129,2]
[385049723,1757652651867,-480.0,0.0001913,2]
[385049724,1757652651877,-480.0,0.0001913,2]
[385049725,1757652651886,-480.0,0.0001913,2]
[385049726,1757652651895,-3185.53,0.0001913,2]
[385049727,1757652651904,-1548.88,0.0001913,2]
[385049728,1757652651913,-837.24,0.0001913,2]
[385049729,1757652651923,-200.0,0.00019178,2]
[385049730,1757652651932,-591.38824094,0.00019208,2]
[385049731,1757652651941,-2365.55296378,0.00019208,2]
[385049732,1757652651951,-5322.4941685,0.00019208,2]
[385049733,1757652651960,-666.25,0.00019403,2]
[385049734,1757652651969,-480.0,0.00019404,2]
[385049735,1757652651978,-480.0,0.00019404,2]
[385049736,1757652651987,-480.0,0.00019404,2]
[385049737,1757652651996,-3185.53,0.00019404,2]
[385049738,1757652652006,-1548.88,0.00019404,2]
[385049739,1757652652015,-837.24,0.00019404,2]
[385049740,1757652652024,-500.0,0.00019504,2]
[385049741,1757652652033,-409.0,0.00019511,2]
[385049742,1757652652042,-150.07,0.00019511,2]
[385049743,1757652652051,-666.25,0.00019677,2]
[385049744,1757652652060,-599.87,0.00019678,2]
[385049745,1757652652069,-312.59,0.00019678,2]
[385049746,1757652652079,-480.0,0.00019678,2]
[385049747,1757652652088,-3185.53,0.00019678,2]
[385049748,1757652652097,-1548.88,0.00019678,2]
[385049749,1757652652106,-837.24,0.00019678,2]
[385049750,1757652652115,-400.0,0.00019726,2]
[385049751,1757652652125,-151.0,0.00019777,2]
[385049752,1757652652134,-7567.12292603,0.000199,2]
[385049753,1757652652145,-666.25,0.00019951,2]
[385049754,1757652652154,-547.04,0.00019952,2]
[385049755,1757652652163,-3185.53,0.00019952,2]
[385049756,1757652652172,-1548.88,0.00019952,2]
[385049757,1757652652181,-837.24,0.00019952,2]
[385049758,1757652652191,-151.0,0.0002,2]
[385049759,1757652652200,-451.134272,0.00020187,2]
[385049760,1757652652209,-666.37,0.00020225,2]
[385049761,1757652652218,-3185.76137357,0.00020226,2]
[385049762,1757652652227,-1548.98894519,0.00020226,2]
[385049763,1757652652237,-837.45,0.00020226,2]
[385049764,1757652652246,-151.0,0.00020226,2]
[385049765,1757652652255,-2571.04055811,0.00020236,7]
[385049766,1757652652264,-400.01945567,0.00020274,2]
[385049767,1757652652273,-151.0,0.00020299,2]
[385049768,1757652652282,-151.0,0.00020299,2]
[385049769,1757652652291,-151.0,0.00020299,2]
[385049770,1757652652301,-176.707419,0.00020299,2]
[385049771,1757652652393,-151.0,0.00020299,2]
[385049772,1757652652402,-176.707419,0.00020299,2]
[385049773,1757652652415,-176.707419,0.00020299,2]
[385049774,1757652652425,-176.707419,0.00020299,2]
[385049775,1757652652435,-7567.12292582,0.00020299,2]
[385049776,1757652652446,-151.0,0.00020325,2]
[385049777,1757652652458,-151.0,0.00020325,2]
[385049778,1757652652469,-151.0,0.00020325,2]
[385049779,1757652652478,-151.0,0.00020325,2]
[385049780,1757652652489,-151.0,0.00020325,2]
[385049781,1757652652498,-151.0,0.00020325,2]
[385049782,1757652652508,-380.0,0.00020327,2]
[385049783,1757652652517,-380.0,0.00020327,2]
[385049784,1757652652528,-380.0,0.00020327,2]
[385049785,1757652652538,-380.0,0.00020327,2]
[385049786,1757652652548,-144542.15719299,0.000204,2]
[385049787,1757652652558,-1001.747633,0.000204,2]
[385049788,1757652652569,-151.0,0.000204,2]
[385049789,1757652652580,-500.0,0.00020479,2]
[385049790,1757652652590,-7567.12292582,0.00020699,2]
[385049791,1757652652600,-151.0,0.00020699,2]
[385049792,1757652652611,-151.0,0.00020699,2]
[385049793,1757652652620,-195.98641819,0.00020699,2]
[385049794,1757652652630,-151.0,0.00020699,2]
[385049795,1757652652640,-151.0,0.00020699,2]
[385049796,1757652652651,-151.0,0.00020699,2]
[385049797,1757652652662,-151.0,0.00020699,2]
[385049798,1757652652671,-151.0,0.00020699,2]
[385049799,1757652652681,-176.707419,0.00020699,2]
[385049800,1757652652691,-182.878801,0.00020699,2]
[385049801,1757652652700,-176.707419,0.00020699,2]
[385049802,1757652652710,-176.707419,0.00020699,2]
[385049803,1757652652719,-176.707419,0.00020699,2]
[385049804,1757652652731,-2500.0,0.00020712,2]
[385049805,1757652652740,-5154.1114028,0.00020766,2]
[385049806,1757652652750,-1000.0,0.00020794,20]
[385049807,1757652652759,-244.0,0.00020794,20]
[385049808,1757652652768,-151.0,0.00020794,2]
[385049809,1757652652777,-151.0,0.00020794,2]
[385049810,1757652652786,-1000.0,0.000209,2]
[385049811,1757652652796,-83969.73737951,0.00020998,2]
[385049812,1757652652916,-480.0,0.00014746,2]
[385049813,1757652652926,-2585.0469584,0.00020998,2]
[385049814,1757652653004,-480.0,0.00013923,2]
[385049815,1757652653013,-556.2,0.00014197,2]
[385049816,1757652653023,-480.0,0.0001502,2]
[385049817,1757652653032,-480.0,0.00015294,2]
[385049818,1757652653041,-480.0,0.00015568,2]
[385049819,1757652653051,-157.0088305,0.00015842,2]
[385049820,1757652653060,-1931.08388728,0.00020998,2]
[385049821,1757652653181,-480.0,0.00013923,2]
[385049822,1757652653191,-480.0,0.00014197,2]
[385049823,1757652653201,-60632.03619206,0.00020998,2]
[385049824,1757652653211,-380.0,0.00020998,2]
[385049825,1757652653220,-380.0,0.00020998,2]
[385049826,1757652653230,-380.0,0.00020998,2]
[385049827,1757652653240,-380.0,0.00020998,2]
[385049828,1757652653250,-151.0,0.00020998,2]
[385049829,1757652653260,-213.49134,0.00020998,2]
[385049830,1757652653270,-800.0,0.00021,9]
[385049831,1757652653279,-188.4666082,0.00021014,2]
[385049832,1757652653289,-188.4666082,0.00021014,2]
[385049833,1757652653298,-7567.12292582,0.00021098,2]
[385049834,1757652653307,-16.66173829,0.00021128,2]
[385049835,1757652653386,-192.76761228,0.00013923,2]
[385049836,1757652653395,-58.1752341,0.00013924,2]
[385049837,1757652653407,-421.8247659,0.00013924,2]
[385049838,1757652653419,-19.7832542,0.00014198,2]
[385049839,1757652653675,1152.76761228,0.00013784,2]
[385049840,1757652661020,5100.0,0.00013751,2]
[385049843,1757652677071,3154.42404603,0.00013751,2]
[385049844,1757652677094,7032.81834169,0.00013751,2]
[385049877,1757652901875,428.577559,0.00013699,2]
[385049881,1757652922021,610.626499,0.00027,120]
[385049882,1757652989916,2000.0,0.00027397,120]
[385049886,1757653042819,2386.94,0.00013769,2]
[385049967,1757653769767,151.67409931,0.00012848,2]
[385049968,1757653769790,10000.01,0.00012848,2]
[385049969,1757653769812,10000.01,0.00012848,2]
[385049970,1757653769833,10000.01,0.00012848,2]
[385049971,1757653769855,8016.94321099,0.00012848,2]
[385049984,1757653818330,407.148681,0.00013699,2]
[385050171,1757653838688,-1200.0,0.00013821,2]
[385050172,1757653838698,-300.0,0.00013821,2]
[385050173,1757653838707,-17474.27358708,0.00013822,2]
[385050174,1757653838716,-480.0,0.00013822,2]
[385050175,1757653838726,-480.0,0.00013822,2]
[385050176,1757653838735,-525.55,0.00013822,2]
[385050177,1757653838744,-553.73,0.00013822,2]
[385050178,1757653838875,-480.0,0.00013822,2]
[385050179,1757653838884,-480.0,0.00013822,2]
[385050180,1757653838894,-480.0,0.00013822,2]
[385050181,1757653838904,-480.0,0.00013822,2]
[385050182,1757653838913,-480.0,0.00013822,2]
[385050183,1757653838923,-480.0,0.00013822,2]
[385050184,1757653838932,-480.0,0.00013822,2]
[385050185,1757653838942,-480.0,0.00013822,2]
[385050186,1757653838952,-480.0,0.00013822,2]
[385050187,1757653838962,-480.0,0.00013822,2]
[385050188,1757653838971,-480.0,0.00013822,2]
[385050189,1757653838981,-480.0,0.00013822,2]
[385050190,1757653838991,-480.0,0.00013822,2]
[385050191,1757653839001,-480.0,0.00013822,2]
[385050192,1757653839011,-480.0,0.00013822,2]
[385050193,1757653839021,-480.0,0.00013822,2]
[385050194,1757653839031,-480.0,0.00013822,2]
[385050195,1757653839041,-480.0,0.00013822,2]
[385050196,1757653839050,-480.96057961,0.00013822,2]
[385050197,1757653839059,-480.0,0.00013822,2]
[385050198,1757653839068,-480.0,0.00013822,2]
[385050199,1757653839078,-260.77097628,0.00013822,2]
[385050200,1757653839087,-480.0,0.00013822,2]
[385050201,1757653839096,-480.0,0.00013822,2]
[385050202,1757653839106,-731.82,0.00013822,2]
[385050203,1757653839115,-480.0,0.00013822,2]
[385050204,1757653839124,-483.71235859,0.00013823,2]
[385050205,1757653839133,-480.0,0.00013823,2]
[385050206,1757653839142,-480.0,0.00013823,2]
[385050207,1757653839153,-480.0,0.00013823,2]
[385050208,1757653839163,-434.44676853,0.00013823,2]
[385050209,1757653839171,-480.0,0.00013823,2]
[385050210,1757653839181,-480.0,0.00013823,2]
[385050211,1757653839190,-480.0,0.00013823,2]
[385050212,1757653839199,-484.69050205,0.00013823,2]
[385050213,1757653839209,-480.0,0.00013823,2]
[385050214,1757653839221,-480.0,0.00013823,2]
[385050215,1757653839231,-192.89126168,0.00013823,2]
[385050216,1757653839240,-480.0,0.00013823,2]
[385050217,1757653839250,-483.39272109,0.00013823,2]
[385050218,1757653839260,-326.85238249,0.00013823,2]
[385050219,1757653839269,-567.95123225,0.00013823,2]
[385050220,1757653839279,-484.59805901,0.00013823,2]
[385050221,1757653839288,-316.56584568,0.00013823,2]
[385050222,1757653839298,-480.0,0.00013823,2]
[385050223,1757653839307,-480.0,0.00013823,2]
[385050224,1757653839316,-485.67044077,0.00013823,2]
[385050225,1757653839327,-518.38940571,0.00013823,2]
[385050226,1757653839337,-480.0,0.00013823,2]
[385050227,1757653839347,-483.89271582,0.00013823,2]
[385050228,1757653839358,-215.07202585,0.00013823,2]
[385050229,1757653839367,-485.88555419,0.00013823,2]
[385050230,1757653839377,-480.0,0.00013823,2]
[385050231,1757653839386,-480.0,0.00013823,2]
[385050232,1757653839396,-486.61803177,0.00013823,2]
[385050233,1757653839405,-482.32977756,0.00013823,2]
[385050234,1757653839415,-480.0,0.00013823,2]
[385050235,1757653839424,-482.80465601,0.00013823,2]
[385050236,1757653839434,-626.64516311,0.00013823,2]
[385050237,1757653839444,-482.74554229,0.00013823,2]
[385050238,1757653839454,-480.92252946,0.00013823,2]
[385050239,1757653839464,-482.55463665,0.00013823,2]
[385050240,1757653839473,-483.96449801,0.00013823,2]
[385050241,1757653839482,-629.57268172,0.00013823,2]
[385050242,1757653839492,-480.0,0.00013823,2]
[385050243,1757653839501,-491.84307653,0.00013823,2]
[385050244,1757653839510,-486.2020097,0.00013823,2]
[385050245,1757653839520,-265.94351585,0.00013823,2]
[385050246,1757653839529,-480.0,0.00013823,2]
[385050247,1757653839538,-484.88734171,0.00013823,2]
[385050248,1757653839547,-480.0,0.00013823,2]
[385050249,1757653839557,-480.0,0.00013823,2]
[385050250,1757653839566,-486.73967394,0.00013823,2]
[385050251,1757653839576,-481.48922692,0.00013823,2]
[385050252,1757653839585,-995.86,0.00013823,2]
[385050253,1757653839595,-480.0,0.00013823,2]
[385050254,1757653839605,-480.0,0.00013823,2]
[385050255,1757653839614,-480.0,0.00013823,2]
[385050256,1757653839623,-480.0,0.00013823,2]
[385050257,1757653839632,-233.85881518,0.00013823,2]
[385050258,1757653839642,-485.22085515,0.00013823,2]
[385050259,1757653839652,-480.0,0.00013823,2]
[385050260,1757653839661,-480.0,0.00013823,2]
[385050261,1757653839671,-484.07400614,0.00013823,2]
[385050262,1757653839681,-480.0,0.00013823,2]
[385050263,1757653839690,-480.0,0.00013823,2]
[385050264,1757653839699,-480.0,0.00013823,2]
[385050265,1757653839708,-480.0,0.00013823,2]
[385050266,1757653839718,-490.32040738,0.00013823,2]
[385050267,1757653839727,-480.0,0.00013823,2]
[385050268,1757653839736,-480.0,0.00013823,2]
[385050269,1757653839746,-485.58446123,0.00013823,2]
[385050270,1757653839755,-488.10389265,0.00013823,2]
[385050271,1757653839765,-482.52956425,0.00013823,2]
[385050272,1757653839774,-480.0,0.00013823,2]
[385050273,1757653839783,-480.0,0.00013823,2]
[385050274,1757653839793,-494.77565794,0.00013823,2]
[385050275,1757653839803,-480.0,0.00013823,2]
[385050276,1757653839812,-482.45430888,0.00013823,2]
[385050277,1757653839821,-500.0,0.00013823,2]
[385050278,1757653839830,-480.0,0.00013823,2]
[385050279,1757653839839,-482.59655625,0.00013823,2]
[385050280,1757653839848,-535.58,0.00013823,2]
[385050281,1757653839857,-480.0,0.00013823,2]
[385050282,1757653839870,-480.0,0.00013823,2]
[385050283,1757653839879,-480.0,0.00013823,2]
[385050284,1757653839888,-3805.55825737,0.00013823,2]
[385050285,1757653839897,-480.0,0.00013823,2]
[385050286,1757653839906,-480.0,0.00013823,2]
[385050287,1757653839915,-496.87292785,0.00013823,2]
[385050288,1757653839924,-480.0,0.00013823,2]
[385050289,1757653839933,-486.98357216,0.00013823,2]
[385050290,1757653839942,-480.0,0.00013823,2]
[385050291,1757653839952,-480.0,0.00013823,2]
[385050292,1757653839961,-480.0,0.00013823,2]
[385050293,1757653839970,-480.0,0.00013823,2]
[385050295,1757653839979,-480.0,0.00013823,2]
[385050296,1757653839988,-334.7144332,0.00013823,2]
[385050297,1757653839997,-482.51337109,0.00013823,2]
[385050298,1757653840006,-314.33270682,0.00013823,2]
[385050299,1757653840016,-485.83684232,0.00013823,2]
[385050300,1757653840024,-480.0,0.00013823,2]
[385050301,1757653840033,-480.0,0.00013823,2]
[385050303,1757653840043,-493.16565594,0.00013823,2]
[385050304,1757653840052,-480.0,0.00013823,2]
[385050305,1757653840061,-480.0,0.00013823,2]
[385050306,1757653840069,-488.72813168,0.00013823,2]
[385050307,1757653840078,-480.0,0.00013823,2]
[385050308,1757653840087,-263.33274518,0.00013823,2]
[385050309,1757653840096,-480.0,0.00013823,2]
[385050310,1757653840106,-486.26986262,0.00013823,2]
[385050311,1757653840115,-3551.6,0.00013823,2]
[385050312,1757653840124,-484.81400004,0.00013823,2]
[385050313,1757653840134,-485.85955837,0.00013823,2]
[385050314,1757653840143,-480.0,0.00013823,2]
[385050315,1757653840152,-480.0,0.00013823,2]
[385050316,1757653840161,-483.72019922,0.00013823,2]
[385050317,1757653840170,-480.0,0.00013823,2]
[385050318,1757653840180,-480.0,0.00013823,2]
[385050319,1757653840189,-480.0,0.00013823,2]
[385050320,1757653840198,-1824.27,0.00013823,2]
[385050321,1757653840208,-482.15777201,0.00013823,2]
[385050322,1757653840219,-480.0,0.00013823,2]
[385050323,1757653840229,-489.78538899,0.00013823,2]
[385050324,1757653840239,-484.33657807,0.00013823,2]
[385050325,1757653840248,-480.0,0.00013823,2]
[385050326,1757653840258,-483.8868177,0.00013823,2]
[385050327,1757653840267,-486.36224395,0.00013823,2]
[385050328,1757653840276,-458.6330068,0.00013823,2]
[385050329,1757653840285,-511.40783638,0.00013823,2]
[385050330,1757653840295,-480.0,0.00013823,2]
[385050331,1757653840304,-198.59057552,0.00013823,2]
[385050332,1757653840314,-480.0,0.00013823,2]
[385050333,1757653840324,-1466.98535636,0.00013823,2]
[385050334,1757653840333,-480.0,0.00013823,2]
[385050335,1757653840343,-480.0,0.00013823,2]
[385050336,1757653840352,-480.0,0.00013823,2]
[385050337,1757653840362,-480.0,0.00013823,2]
[385050338,1757653840371,-480.0,0.00013823,2]
[385050339,1757653840380,-1006.95736075,0.00013823,2]
[385050340,1757653840389,-481.65670313,0.00013823,2]
[385050341,1757653840398,-480.0,0.00013823,2]
[385050342,1757653840408,-483.23740924,0.00013823,2]
[385050343,1757653840417,-482.03354135,0.00013823,2]
[385050344,1757653840427,-481.52549031,0.00013823,2]
[385050345,1757653840436,-480.0,0.00013823,2]
[385050346,1757653840445,-481.64784464,0.00013823,2]
[385050347,1757653840455,-480.0,0.00013823,2]
[385050348,1757653840464,-480.0,0.00013823,2]
[385050349,1757653840473,-480.0,0.00013823,2]
[385050350,1757653840482,-194.19216708,0.00013823,2]
[385050351,1757653840492,-202.61087157,0.00013823,2]
[385050352,1757653840501,-370000.0,0.00013824,2]
[385050353,1757653840510,-484.63323559,0.00013923,2]
[385050354,1757653840520,-480.0,0.00013923,2]
[385050355,1757653840530,-488.99043806,0.00013923,2]
[385050356,1757653840539,-480.0,0.00013923,2]
[385050357,1757653840549,-480.0,0.00013923,2]
[385050358,1757653840558,-483.96622684,0.00013923,2]
[385050359,1757653840568,-480.0,0.00013923,2]
[385050360,1757653840577,-484.7338844,0.00013923,2]
[385050361,1757653840586,-483.97424391,0.00013923,2]
[385050362,1757653840596,-480.0,0.00013923,2]
[385050363,1757653840606,-526.85,0.00013923,2]
[385050365,1757653840615,-480.0,0.00013923,2]
[385050367,1757653840624,-480.0,0.00013923,2]
[385050369,1757653840634,-480.0,0.00013923,2]
[385050371,1757653840643,-480.0,0.00013923,2]
[385050373,1757653840652,-480.0,0.00013923,2]
[385050375,1757653840661,-480.0,0.00013923,2]
[385050377,1757653840670,-480.0,0.00013923,2]
[385050379,1757653840680,-500.0,0.00013923,2]
[385050381,1757653840689,-500.0,0.00013923,2]
[385050383,1757653840699,-500.0,0.00013923,2]
[385050385,1757653840708,-500.0,0.00013923,2]
[385050387,1757653840718,-500.0,0.00013923,2]
[385050389,1757653840728,-480.0,0.00013923,2]
[385050391,1757653840738,-482.1300751,0.00013923,2]
[385050393,1757653840748,-480.0,0.00013923,2]
[385050395,1757653840758,-480.0,0.00013923,2]
[385050397,1757653840768,-480.0,0.00013923,2]
[385050399,1757653840777,-480.0,0.00013923,2]
[385050401,1757653840787,-481.53748432,0.00013923,2]
[385050403,1757653840797,-480.0,0.00013923,2]
[385050405,1757653840806,-480.0,0.00013923,2]
[385050407,1757653840815,-523.92281691,0.00013923,2]
[385050409,1757653840824,-480.0,0.00013923,2]
[385050411,1757653840834,-482.55760427,0.00013923,2]
[385050413,1757653840843,-480.0,0.00013923,2]
[385050415,1757653840851,-480.0,0.00013923,2]
[385050417,1757653840861,-480.0,0.00013923,2]
[385050419,1757653840870,-480.0,0.00013923,2]
[385050421,1757653840879,-480.0,0.00013923,2]
[385050423,1757653840888,-483.16067507,0.00013923,2]
[385050425,1757653840898,-480.0,0.00013923,2]
[385050427,1757653840906,-480.0,0.00013923,2]
[385050429,1757653840915,-480.0,0.00013923,2]
[385050431,1757653840924,-480.0,0.00013923,2]
[385050433,1757653840934,-480.0,0.00013923,2]
[385050435,1757653840943,-480.0,0.00013923,2]
[385050437,1757653840953,-480.0,0.00013923,2]
[385050439,1757653840962,-482.04299615,0.00013923,2]
[385050441,1757653840971,-480.0,0.00013923,2]
[385050443,1757653840980,-481.74798509,0.00013923,2]
[385050445,1757653840988,-480.0,0.00013924,2]
[385050447,1757653841000,-480.0,0.00013924,2]
[385050449,1757653841010,-482.09871059,0.00013924,2]
[385050451,1757653841020,-480.0,0.00013924,2]
[385050453,1757653841030,-480.0,0.00013924,2]
[385050455,1757653841040,-485.33556169,0.00013924,2]
[385050457,1757653841049,-480.0,0.00013924,2]
[385050459,1757653841058,-480.0,0.00013924,2]
[385050461,1757653841068,-480.0,0.00013924,2]
[385050463,1757653841077,-480.0,0.00013924,2]
[385050465,1757653841086,-480.0,0.00013924,2]
[385050467,1757653841095,-480.0,0.00013924,2]
[385050469,1757653841105,-481.93664199,0.00013924,2]
[385050471,1757653841114,-480.0,0.00013924,2]
[385050473,1757653841124,-480.0,0.00013924,2]
[385050475,1757653841133,-480.0,0.00013924,2]
[385050477,1757653841144,-571.87,0.00013924,2]
[385050480,1757653841155,-613.64525266,0.00013924,2]
[385050482,1757653841164,-480.0,0.00013924,2]
[385050483,1757653841173,-480.0,0.00013924,2]
[385050485,1757653841182,-363.54005415,0.00013924,2]
[385050487,1757653841191,-352.12125989,0.00013924,2]
[385050490,1757653841201,-480.0,0.00013924,2]
[385050491,1757653841210,-480.0,0.00013924,2]
[385050493,1757653841224,-480.0,0.00013924,2]
[385050496,1757653841234,-480.0,0.00013924,2]
[385050498,1757653841243,-480.0,0.00013924,2]
[385050500,1757653841253,-480.0,0.00013924,2]
[385050502,1757653841265,-480.0,0.00013924,2]
[385050504,1757653841275,-480.0,0.00013924,2]
[385050506,1757653841284,-480.0,0.00013924,2]
[385050508,1757653841295,-484.37650238,0.00013924,2]
[385050510,1757653841307,-480.0,0.00013924,2]
[385050512,1757653841316,-480.0,0.00013924,2]
[385050514,1757653841325,-480.0,0.00013924,2]
[385050516,1757653841334,-480.0,0.00013924,2]
[385050518,1757653841343,-480.0,0.00013924,2]
[385050520,1757653841353,-382.36415016,0.00013924,2]
[385050522,1757653841362,-480.0,0.00013924,2]
[385050524,1757653841371,-480.0,0.00013924,2]
[385050526,1757653841380,-480.0,0.00013924,2]
[385050528,1757653841390,-480.0,0.00013924,2]
[385050530,1757653841400,-480.0,0.00013924,2]
[385050532,1757653841409,-480.0,0.00013924,2]
[385050534,1757653841418,-480.0,0.00013924,2]
[385050536,1757653841428,-480.0,0.00013924,2]
[385050538,1757653841437,-480.0,0.00013924,2]
[385050539,1757653841447,-480.0,0.00013924,2]
[385050540,1757653841456,-480.0,0.00013924,2]
[385050542,1757653841551,-480.0,0.00013924,2]
[385050543,1757653841573,-480.0,0.00013924,2]
[385050544,1757653841583,-480.0,0.00013924,2]
[385050545,1757653841592,-482.14647228,0.00013924,2]
[385050546,1757653841602,-480.0,0.00013924,2]
[385050547,1757653841611,-480.0,0.00013924,2]
[385050548,1757653841620,-480.0,0.00013924,2]
[385050549,1757653841629,-480.0,0.00013924,2]
[385050550,1757653841639,-480.0,0.00013924,2]
[385050551,1757653841648,-480.86745239,0.00013924,2]
[385050552,1757653841658,-436.18133661,0.00013924,2]
[385050553,1757653841667,-481.75805719,0.00013924,2]
[385050554,1757653841677,-480.0,0.00013924,2]
[385050555,1757653841686,-480.0,0.00013924,2]
[385050556,1757653841696,-480.0,0.00013924,2]
[385050557,1757653841705,-505.18179122,0.00013924,2]
[385050558,1757653841715,-480.0,0.00013924,2]
[385050559,1757653841724,-480.0,0.00013924,2]
[385050560,1757653841733,-482.35767711,0.00013924,2]
[385050561,1757653841742,-480.0,0.00013924,2]
[385050562,1757653841752,-480.0,0.00013924,2]
[385050563,1757653841761,-480.0,0.00013924,2]
[385050564,1757653841771,-480.0,0.00013924,2]
[385050565,1757653841780,-480.0,0.00013924,2]
[385050566,1757653841791,-480.0,0.00013924,2]
[385050567,1757653841800,-481.08460768,0.00013924,2]
[385050568,1757653841810,-480.0,0.00013924,2]
[385050569,1757653841819,-480.0,0.00013924,2]
[385050570,1757653841829,-480.0,0.00013924,2]
[385050571,1757653841838,-480.0,0.00013924,2]
[385050572,1757653841847,-480.0,0.00013924,2]
[385050573,1757653841856,-480.0,0.00013924,2]
[385050574,1757653841866,-480.0,0.00013924,2]
[385050575,1757653841875,-480.0,0.00013924,2]
[385050576,1757653841884,-482.82757776,0.00013924,2]
[385050577,1757653841894,-484.27298877,0.00013924,2]
[385050578,1757653841903,-480.0,0.00013924,2]
[385050579,1757653841913,-480.0,0.00013924,2]
[385050580,1757653841923,-480.0,0.00013924,2]
[385050581,1757653841932,-480.0,0.00013924,2]
[385050582,1757653841942,-617.13320751,0.00013924,2]
[385050583,1757653841951,-480.0,0.00013924,2]
[385050584,1757653841960,-480.0,0.00013924,2]
[385050585,1757653841970,-480.0,0.00013924,2]
[385050586,1757653841979,-480.0,0.00013924,2]
[385050587,1757653841989,-480.0,0.00013924,2]
[385050588,1757653841998,-480.0,0.00013924,2]
[385050589,1757653842008,-480.0,0.00013924,2]
[385050590,1757653842017,-480.0,0.00013924,2]
[385050591,1757653842026,-480.0,0.00013924,2]
[385050592,1757653842036,-482.00226032,0.00013924,2]
[385050593,1757653842045,-481.33253941,0.00013924,2]
[385050594,1757653842054,-480.0,0.00013924,2]
[385050595,1757653842064,-481.03224117,0.00013924,2]
[385050596,1757653842073,-480.0,0.00013924,2]
[385050597,1757653842082,-480.0,0.00013924,2]
[385050598,1757653842091,-480.0,0.00013924,2]
[385050599,1757653842100,-480.0,0.00013924,2]
[385050600,1757653842109,-502.6960184,0.00013973,2]
[385050601,1757653842118,-501.22653571,0.00013973,2]
[385050602,1757653842127,-3212.40309491,0.0001399,2]
[385050603,1757653842136,-157.0,0.00014024,2]
[385050604,1757653842146,-157.0,0.00014024,2]
[385050605,1757653842155,-157.11565503,0.00014024,2]
[385050606,1757653842164,-213.24,0.00014024,2]
[385050607,1757653842173,-218.79178046,0.00014024,2]
[385050608,1757653842182,-500.0,0.00014024,2]
[385050609,1757653842191,-157.0,0.00014024,2]
[385050610,1757653842202,-1466.98535633,0.00014077,2]
[385050611,1757653842212,-480.0,0.00014096,2]
[385050612,1757653842224,-480.0,0.00014096,2]
[385050613,1757653842233,-525.55,0.00014096,2]
[385050614,1757653842243,-553.73,0.00014096,2]
[385050615,1757653842253,-480.0,0.00014096,2]
[385050616,1757653842262,-480.0,0.00014096,2]
[385050617,1757653842271,-480.0,0.00014096,2]
[385050618,1757653842280,-480.0,0.00014096,2]
[385050619,1757653842290,-492.11222958,0.00014096,2]
[385050620,1757653842299,-480.0,0.00014096,2]
[385050621,1757653842309,-490.20497562,0.00014096,2]
[385050622,1757653842318,-480.0,0.00014096,2]
[385050623,1757653842328,-480.0,0.00014096,2]
[385050624,1757653842337,-480.0,0.00014096,2]
[385050625,1757653842346,-480.0,0.00014096,2]